bitfinex/quotes_ETHUSD_20230702
["timestamp","ask_amount","ask_price","bid_price","bid_amount"]
[1688315338616,10.68682218,1919.8,1919.5,5.20964]
[1688315338926,2.68752184,1919.7,1919.5,10.41933]
[1688315339318,0.00343927,1919.6,1919.5,10.41933]
[1688315339687,0.00343927,1919.6,1919.5,13.97217]
[1688315340286,7.91856,1920.1,1919.5,13.97217]
[1688315340491,6.000186,1920.0,1919.5,13.97217]
[1688315341300,0.00288794,1919.9,1919.5,13.97217]
[1688315341516,0.00288794,1919.9,1919.6,0.948]
[1688315341715,0.00288794,1919.9,1919.7,13.02285]
[1688315342422,3.72912184,1920.1,1919.7,13.02285]
[1688315342623,0.37291218,1920.0,1919.7,13.02285]
[1688315343427,0.00288215,1919.9,1919.7,13.02285]
[1688315344328,0.00288215,1919.9,1919.8,0.96453359]
[1688315344625,0.00288215,1919.9,1919.8,13.98670359]
[1688315345239,0.00288215,1919.9,1919.8,17.15422543]
[1688315345393,5.20651,1920.7,1919.8,20.15422543]
[1688315345725,5.20651,1920.7,1920.4,10.41438]
[1688315345726,10.41318,1920.7,1920.4,10.41438]
[1688315346494,0.945,1920.5,1920.1,5.20793]
[1688315346836,6.15202,1920.5,1920.0,10.41644]
[1688315347131,5.20702,1920.5,1920.0,10.41644]
[1688315347300,5.20702,1920.5,1920.0,5.2082]
[1688315347503,5.20773,1920.3,1919.6,1.9462]
[1688315347737,2.68752184,1920.2,1919.7,5.20906]
[1688315348027,5.20819,1920.1,1919.7,10.41801]
[1688315348228,7.89571184,1920.1,1919.7,10.41801]
[1688315348414,0.78957118,1920.0,1919.7,10.41801]
[1688315348617,0.78957118,1920.0,1919.7,5.20895]
[1688315348817,5.99791118,1920.0,1919.6,7.15546]
[1688315349408,5.99791118,1920.0,1919.6,7.15556]
[1688315350227,5.99791118,1920.0,1919.6,12.36497]
[1688315350410,0.78957118,1920.0,1919.6,14.96967]
[1688315352341,0.78957118,1920.0,1919.6,7.15556]
[1688315352540,0.78957118,1920.0,1919.6,7.15559]
[1688315352739,0.78957118,1920.0,1919.6,12.365]
[1688315353041,0.78957118,1920.0,1919.6,14.9697]
[1688315353639,0.78730812,1920.0,1919.6,14.9697]
[1688315354113,0.42202652,1920.3,1919.8,13.97162]
[1688315354317,3.10954836,1920.3,1919.8,13.97162]
[1688315354548,2.143402,1920.4,1919.8,13.97162]
[1688315354708,2.143402,1920.4,1919.8,13.02162]
[1688315354709,1.6227,1920.4,1919.8,13.02162]
[1688315354905,1.6227,1920.4,1919.8,14.52482]
[1688315355119,1.6227,1920.4,1920.0,13.02047]
[1688315355522,6.82998,1920.4,1920.0,13.02047]
[1688315355727,35.76678,1920.6,1920.0,13.96947]
[1688315355929,3.576678,1920.5,1920.0,13.96947]
[1688315356133,14.76855184,1920.6,1920.0,13.96947]
[1688315356522,14.76855184,1920.6,1920.0,15.47267]
[1688315357146,5.20652,1920.7,1920.1,0.95]
[1688315357450,5.20652,1920.7,1920.0,14.52367]
[1688315357451,0.4262615,1920.8,1920.3,13.01872]
[1688315357608,30.56,1920.9,1920.3,13.03524929]
[1688315357813,11.50140111,1921.1,1920.3,15.72277113]
[1688315358014,5.20541,1921.1,1920.4,0.48]
[1688315358221,6.29585111,1921.1,1920.6,10.41334]
[1688315358423,2.69132813,1921.0,1920.6,10.41334]
[1688315358647,5.47503281,1920.9,1920.6,10.41334]
[1688315359342,5.47503281,1920.9,1920.6,13.01669]
[1688315359641,0.26913281,1920.9,1920.6,13.01669]
[1688315360225,1.49905768,1921.2,1920.6,14.34369]
[1688315360421,6.29565111,1921.2,1920.6,14.34369]
[1688315360626,5.20521,1921.2,1920.6,14.34369]
[1688315361207,0.00312429,1921.1,1920.6,14.34369]
[1688315361530,0.52395772,1921.1,1920.8,13.01525]
[1688315363025,0.52395772,1921.1,1920.8,10.4122]
[1688315364627,5.72931772,1921.1,1920.8,10.4122]
[1688315364831,0.52395772,1921.1,1920.8,13.01528]
[1688315365246,0.00312429,1921.1,1920.8,13.01528]
[1688315366232,5.20514,1921.2,1920.8,13.01528]
[1688315366435,7.89266184,1921.2,1920.8,13.01528]
[1688315367254,0.00343672,1921.1,1920.8,13.01528]
[1688315368232,0.42679584,1921.3,1920.8,13.01528]
[1688315368422,4.34594442,1921.3,1920.8,13.01528]
[1688315368627,9.12399858,1921.3,1920.8,13.01528]
[1688315368828,9.12399858,1921.3,1920.8,10.4122]
[1688315369257,0.00313434,1921.2,1920.8,10.4122]
[1688315370156,13.10106618,1921.2,1920.8,10.4122]
[1688315370370,0.93323569,1921.1,1920.8,13.01528]
[1688315370874,0.00313434,1921.2,1920.8,13.01528]
[1688315372821,0.00313434,1921.2,1920.9,1.323]
[1688315373027,0.00313434,1921.2,1921.0,14.33305]
[1688315373278,10.81750173,1921.4,1921.0,14.33305]
[1688315374270,10.81750173,1921.4,1921.0,11.73024]
[1688315374443,0.00288235,1921.3,1921.0,11.73024]
[1688315374634,0.00288235,1921.3,1921.0,11.74024]
[1688315374827,0.00288235,1921.3,1921.0,14.34305]
[1688315376170,0.00288235,1921.3,1921.0,13.01405]
[1688315376369,10.40889,1921.5,1921.0,13.01405]
[1688315376578,1.040889,1921.4,1921.0,13.01405]
[1688315377075,5.20443,1921.5,1921.0,13.01405]
[1688315377271,0.00288235,1921.3,1921.0,13.01405]
[1688315378357,5.62212382,1921.5,1921.0,13.01405]
[1688315378848,10.82646382,1921.5,1921.0,13.01405]
[1688315379378,0.00289157,1921.4,1921.0,13.01405]
[1688315379575,5.20744157,1921.4,1921.0,13.01405]
[1688315379882,6.81083211,1921.4,1921.0,13.01405]
[1688315386153,2.68752184,1921.2,1920.3,0.0128963]
[1688315386346,0.68108321,1921.3,1920.3,0.0128963]
[1688315386347,0.5,1920.8,1920.3,0.0128963]
[1688315386553,10.41348,1920.6,1920.3,0.0128963]
[1688315386870,6.248338,1920.5,1920.3,0.0128963]
[1688315387017,14.14284984,1920.5,1920.3,0.0128963]
[1688315387329,18.07532984,1920.5,1920.3,0.0128963]
[1688315388515,1.325,1920.4,1920.3,0.0128963]
[1688315388720,15.70562184,1920.4,1920.3,0.0128963]
[1688315388883,5.478,1919.6,1919.3,0.40901515]
[1688315389087,13.10690184,1919.5,1919.3,0.40901515]
[1688315389320,1.0201,1920.0,1919.3,0.40901515]
[1688315389521,7.90190256,1919.9,1919.3,14.75357515]
[1688315389834,7.89612184,1919.9,1919.3,14.75357515]
[1688315389981,8.68573402,1919.9,1919.3,14.75357515]
[1688315390937,13.89447402,1919.9,1919.3,14.75357515]
[1688315392955,0.00798844,1919.8,1919.3,13.43457515]
[1688315393258,5.20916,1919.7,1919.3,13.43457515]
[1688315395237,5.20916,1919.7,1919.3,10.82946515]
[1688315395441,0.0089157,1919.6,1919.3,10.82946515]
[1688315395819,0.0089157,1919.6,1919.3,5.61923515]
[1688315396156,0.0089157,1919.6,1919.3,0.40901515]
[1688315396157,10.41896,1919.6,1919.3,0.40901515]
[1688315396367,0.00799899,1919.5,1919.3,0.40901515]
[1688315397433,0.00799899,1919.5,1919.3,5.61915515]
[1688315397621,5.21768899,1919.5,1919.3,0.40901515]
[1688315397857,10.41913,1919.6,1919.3,5.61924515]
[1688315398053,0.00914326,1919.5,1919.3,5.61924515]
[1688315399361,5.21886326,1919.5,1919.3,5.61924515]
[1688315399669,5.21886326,1919.5,1919.3,0.40901515]
[1688315401188,5.20972,1919.5,1919.3,0.40901515]
[1688315401557,6.52039818,1919.5,1919.3,0.40901515]
[1688315401764,0.00557869,1919.4,1919.3,0.40901515]
[1688315401963,6.52039818,1919.5,1919.3,0.40901515]
[1688315402187,13.10744184,1919.4,1919.3,0.40901515]
[1688315402768,15.71242184,1919.4,1919.3,0.40901515]
[1688315402970,17.67522084,1919.4,1919.3,0.40901515]
[1688315403213,24.48820836,1919.4,1919.3,0.40901515]
[1688315403357,17.67522084,1919.4,1919.3,0.40901515]
[1688315403558,3.622,1919.7,1919.3,0.40901515]
[1688315403559,5.20957,1919.6,1919.3,0.40901515]
[1688315403823,5.20954,1919.6,1919.3,5.61924515]
[1688315404098,10.84372026,1919.8,1919.3,13.43458515]
[1688315404307,0.42592026,1919.8,1919.3,13.43458515]
[1688315404596,5.20896,1919.8,1919.3,13.43458515]
[1688315404784,10.41792,1919.8,1919.3,13.43458515]
[1688315404984,0.01252206,1919.7,1919.3,13.43458515]
[1688315405287,7.9092839,1919.7,1919.3,5.61924515]
[1688315405601,10.41938,1919.5,1919.3,0.40901515]
[1688315405839,15.71242184,1919.4,1919.3,0.40901515]
[1688315406028,17.54414802,1919.4,1919.3,0.40901515]
[1688315408310,23.02214802,1919.4,1919.3,0.40901515]
[1688315408512,0.01652414,1919.6,1919.3,0.40901515]
[1688315408711,0.01652414,1919.6,1919.3,5.61920515]
[1688315408712,7.89703184,1919.6,1919.3,5.61920515]
[1688315408916,5.20925,1919.7,1919.3,10.82943515]
[1688315409111,5.60431,1919.9,1919.3,10.82943515]
[1688315409112,3.0,1919.9,1919.3,13.43454515]
[1688315409313,2.68752184,1919.8,1919.3,13.43454515]
[1688315409519,7.89624184,1919.9,1919.3,13.43454515]
[1688315409940,13.10506184,1919.9,1919.3,13.43454515]
[1688315410145,7.89624184,1919.9,1919.3,13.43454515]
[1688315410313,13.10501184,1919.9,1919.3,13.43454515]
[1688315411247,13.10501184,1919.9,1919.3,10.82943515]
[1688315411443,3.99802302,1919.8,1919.3,10.82943515]
[1688315411656,5.20928,1919.7,1919.3,5.61920515]
[1688315411949,13.10608184,1919.7,1919.3,0.40901515]
[1688315413129,2.68752184,1919.6,1919.3,0.40901515]
[1688315413353,0.26875218,1919.5,1919.3,0.40901515]
[1688315413572,8.16601402,1919.5,1919.3,0.40901515]
[1688315413868,13.10700184,1919.5,1919.3,0.40901515]
[1688315414825,7.89726184,1919.5,1919.3,0.40901515]
[1688315415459,7.89748184,1919.4,1919.3,0.40901515]
[1688315415674,2.68752184,1919.4,1919.3,0.40901515]
[1688315415819,3.99823502,1919.4,1919.3,0.40901515]
[1688315416162,9.20819502,1919.4,1919.3,0.40901515]
[1688315416659,3.99823502,1919.4,1919.3,0.40901515]
[1688315416873,27.43213502,1919.4,1919.3,0.40901515]
[1688315417169,9.20819502,1919.4,1919.3,0.40901515]
[1688315417520,3.99823502,1919.4,1919.3,0.40901515]
[1688315418267,14.41815502,1919.4,1919.3,0.40901515]
[1688315418667,17.02313502,1919.4,1919.3,0.40901515]
[1688315420168,18.35213502,1919.4,1919.3,0.40901515]
[1688315420369,23.83013502,1919.4,1919.3,0.40901515]
[1688315420715,24.31013502,1919.4,1919.3,0.40901515]
[1688315422171,27.43213502,1919.4,1919.3,0.40901515]
[1688315424566,24.82715502,1919.4,1919.3,0.40901515]
[1688315424771,21.95413502,1919.4,1919.3,0.40901515]
[1688315425008,18.83213502,1919.4,1919.3,0.40901515]
[1688315425332,14.41815502,1919.4,1919.3,0.40901515]
[1688315425468,9.20819502,1919.4,1919.3,0.40901515]
[1688315425679,14.41815502,1919.4,1919.3,0.40901515]
[1688315426372,17.02313502,1919.4,1919.3,0.40901515]
[1688315427001,22.98113502,1919.4,1919.3,0.40901515]
[1688315428246,17.02313502,1919.4,1919.3,0.40901515]
[1688315429571,14.41815502,1919.4,1919.3,0.40901515]
[1688315430098,17.02313502,1919.4,1919.3,0.40901515]
[1688315432914,2.68752184,1919.4,1919.3,0.40901515]
[1688315433635,0.422162,1919.6,1919.3,5.61924515]
[1688315433840,5.20896,1919.8,1919.3,13.43458515]
[1688315434044,2.68752184,1919.7,1919.4,1.319]
[1688315434190,7.89685184,1919.7,1919.5,5.20969]
[1688315434534,10.83640647,1919.8,1919.5,10.41938]
[1688315434836,8.31486831,1919.8,1919.5,10.41938]
[1688315435741,7.89648184,1919.8,1919.5,10.41938]
[1688315436192,13.10543184,1919.8,1919.5,10.41938]
[1688315436479,7.89647184,1919.8,1919.5,5.20969]
[1688315436889,7.89647184,1919.8,1919.5,10.41938]
[1688315437105,5.20887,1919.8,1919.5,10.41938]
[1688315437588,5.20887,1919.8,1919.4,6.52879]
[1688315437767,6.511072,1919.8,1919.4,5.20979]
[1688315437939,9.19859384,1919.8,1919.3,6.93807515]
[1688315438140,9.19859384,1919.8,1919.3,0.40901515]
[1688315438141,2.68752184,1919.7,1919.3,0.40901515]
[1688315438343,5.20945,1919.6,1919.3,0.40901515]
[1688315439184,2.68752184,1919.5,1919.3,0.40901515]
[1688315440040,7.89725184,1919.5,1919.3,0.40901515]
[1688315443449,2.68752184,1919.5,1919.3,0.40901515]
[1688315443649,7.89722184,1919.5,1919.3,0.40901515]
[1688315444499,2.68752184,1919.5,1919.3,0.40901515]
[1688315444790,4.12925414,1919.5,1919.3,0.40901515]
[1688315445205,9.33896414,1919.5,1919.3,0.40901515]
[1688315446691,4.12925414,1919.5,1919.3,0.40901515]
[1688315449498,9.33894414,1919.5,1919.3,0.40901515]
[1688315450332,9.75281296,1919.5,1919.3,0.40901515]
[1688315450471,0.9752813,1919.4,1919.3,0.40901515]
[1688315450670,2.68752184,1919.4,1919.3,0.40901515]
[1688315456110,0.41386882,1919.5,1919.3,10.82947515]
[1688315456603,10.43523414,1919.7,1919.3,10.82947515]
[1688315456809,2.68752184,1919.6,1919.3,5.61924515]
[1688315457106,7.89694184,1919.6,1919.3,5.61924515]
[1688315457279,2.68752184,1919.6,1919.3,5.61924515]
[1688315457479,3.99979544,1919.6,1919.3,6.57024515]
[1688315457698,3.99979544,1919.6,1919.3,5.61924515]
[1688315457901,0.42480679,1919.7,1919.3,10.82947515]
[1688315458108,0.81604793,1919.8,1919.3,13.43458515]
[1688315458444,3.50356977,1919.8,1919.3,13.43458515]
[1688315458616,8.71246977,1919.8,1919.3,13.43458515]
[1688315459990,7.89642184,1919.8,1919.3,13.43458515]
[1688315465245,0.81604793,1920.0,1919.3,13.43458515]
[1688315465404,2.68752184,1920.0,1919.8,6.15982]
[1688315465846,0.81604793,1920.2,1919.9,0.951]
[1688315466013,9.94358167,1920.2,1919.9,11.36787]
[1688315466337,7.25605983,1920.2,1919.9,5.20833]
[1688315466526,7.25605983,1920.2,1919.8,5.20871]
[1688315466527,7.67782177,1920.2,1919.8,5.20871]
[1688315466741,6.86177384,1920.2,1919.8,11.36445]
[1688315473533,0.42176194,1920.2,1919.8,13.96888]
[1688315473682,6.03986207,1920.4,1920.0,0.951]
[1688315473888,7.89513184,1920.3,1920.0,5.20813]
[1688315474095,9.28863123,1920.3,1920.0,10.41646]
[1688315474242,6.44865547,1920.4,1920.0,13.02062]
[1688315474443,9.13617731,1920.4,1920.0,13.02062]
[1688315474688,11.65599547,1920.4,1920.0,13.02062]
[1688315474890,0.4087934,1920.4,1920.2,0.951]
[1688315475056,5.6160334,1920.4,1920.2,6.15874]
[1688315475252,5.33540251,1920.5,1920.2,5.20774]
[1688315475461,1.02720204,1920.5,1920.2,5.20774]
[1688315475691,11.44118204,1920.5,1920.2,5.20774]
[1688315475891,11.44118204,1920.5,1920.1,11.3649]
[1688315476192,11.44118204,1920.5,1920.1,10.4159]
[1688315477161,11.86425765,1920.5,1920.1,10.4159]
[1688315477959,0.42307561,1920.5,1920.2,0.949]
[1688315478274,33.0154785,1920.8,1920.4,0.951]
[1688315478275,31.37604793,1920.8,1920.4,0.951]
[1688315478578,31.37604793,1920.8,1920.5,5.20692]
[1688315478579,2.68752184,1920.7,1920.5,5.20692]
[1688315478889,8.76506982,1920.7,1920.5,5.20692]
[1688315479221,13.97162982,1920.7,1920.5,5.20692]
[1688315479359,8.76506982,1920.7,1920.5,5.20692]
[1688315479682,3.55850982,1920.7,1920.5,5.20692]
[1688315479875,2.68752184,1920.7,1920.5,5.20692]
[1688315480496,7.89400184,1920.7,1920.5,5.20692]
[1688315483479,5.75318826,1920.8,1920.5,5.20692]
[1688315483693,13.6469901,1920.8,1920.5,5.20692]
[1688315483864,13.6469901,1920.8,1920.4,6.15803]
[1688315484195,4.05222085,1920.7,1920.2,5.20764]
[1688315484494,14.46538085,1920.7,1920.2,5.20764]
[1688315486565,14.46538085,1920.7,1920.2,10.41543]
[1688315487679,14.48190499,1920.7,1920.2,10.41543]
[1688315487879,1.4481905,1920.6,1920.2,10.41543]
[1688315488475,4.13571234,1920.6,1920.2,5.20764]
[1688315488806,2.70404598,1920.5,1920.1,2.0684]
[1688315489101,5.20727,1920.4,1920.1,2.0684]
[1688315489872,5.20727,1920.4,1920.0,5.20817]
[1688315490196,6.5191076,1920.4,1920.0,5.20817]
[1688315491471,6.5191076,1920.4,1920.0,10.4165]
[1688315492599,14.41389944,1920.4,1920.0,5.20832]
[1688315493399,14.41389944,1920.4,1919.9,8.21067]
[1688315493599,2.68752184,1920.3,1919.9,3.0022]
[1688315493777,9.33645178,1920.3,1919.9,3.0022]
[1688315493981,9.33645178,1920.3,1919.9,8.21077]
[1688315494569,4.12891178,1920.3,1919.9,8.21077]
[1688315495892,4.12891178,1920.3,1919.9,13.41937]
[1688315497108,4.12891178,1920.3,1919.8,0.947]
[1688315497109,0.41289118,1920.2,1919.8,0.947]
[1688315497408,2.68752184,1920.1,1919.8,5.20886]
[1688315497603,7.89563184,1920.1,1919.8,5.20887]
[1688315497779,8.72647014,1920.1,1919.8,5.20887]
[1688315500871,3.51836014,1920.1,1919.8,10.41774]
[1688315501077,1.45791408,1920.3,1919.8,13.96717]
[1688315501278,2.68752184,1920.2,1919.8,13.96717]
[1688315502020,7.89532184,1920.2,1919.8,13.96717]
[1688315502315,5.22413414,1920.3,1919.8,13.96717]
[1688315502483,7.91165598,1920.3,1919.8,13.96717]
[1688315502888,7.91165598,1920.3,1920.0,10.41655]
[1688315503072,7.89513184,1920.3,1920.0,10.41655]
[1688315503478,13.10278184,1920.3,1919.8,5.20868]
[1688315505114,15.70653184,1920.3,1919.8,5.20868]
[1688315505315,1.57065318,1920.2,1919.8,5.20868]
[1688315505615,5.2081,1920.1,1919.8,5.20868]
[1688315508313,5.2081,1920.1,1919.8,10.41755]
[1688315509614,5.2081,1920.1,1919.8,5.20868]
[1688315509983,10.4162,1920.1,1919.7,10.41804]
[1688315510189,10.4162,1920.1,1919.8,5.20883]
[1688315510711,10.4162,1920.1,1919.8,10.4177]
[1688315515998,8.06873502,1920.3,1920.0,5.20827]
[1688315515999,1.90648904,1920.3,1920.0,5.20827]
[1688315516199,1.90648904,1920.3,1919.9,6.15737]
[1688315516200,6.02364793,1920.3,1919.9,11.36579]
[1688315516430,6.02364793,1920.3,1919.9,6.15737]
[1688315516431,11.23135793,1920.3,1919.9,6.15737]
[1688315516752,12.72390183,1920.3,1919.9,6.15737]
[1688315518034,12.72390183,1920.3,1919.9,5.20837]
[1688315519011,15.32765183,1920.3,1919.9,5.20837]
[1688315520413,15.32765183,1920.3,1919.9,10.41697]
[1688315520634,15.32765183,1920.3,1919.9,5.20837]
[1688315523262,4.22028702,1920.2,1919.9,5.20855]
[1688315523559,10.41612,1920.1,1919.9,5.20855]
[1688315525742,5.20806,1920.1,1919.9,5.20855]
[1688315526890,5.20806,1920.1,1919.9,10.41715]
[1688315527347,5.20806,1920.1,1919.9,11.36815]
[1688315531848,5.20806,1920.1,1919.9,10.92948617]
[1688315532045,6.02399793,1920.2,1919.9,10.92948617]
[1688315533258,11.23188793,1920.2,1919.9,10.92948617]
[1688315537181,12.32232904,1920.2,1919.9,9.97848617]
[1688315537489,13.95144168,1920.2,1919.9,9.97848617]
[1688315538076,12.86100057,1920.2,1919.9,9.97848617]
[1688315538689,0.81604793,1920.1,1919.9,9.97848617]
[1688315538864,6.02423793,1920.1,1919.9,9.97848617]
[1688315566124,7.11467904,1920.1,1919.9,9.97848617]
[1688315566316,0.81604793,1920.0,1919.9,9.97848617]
[1688315571723,7.11467904,1920.1,1919.9,9.97848617]
[1688315572040,7.92915644,1920.1,1919.9,9.97848617]
[1688315573012,7.92915644,1920.1,1919.9,4.76988617]
[1688315574322,7.92915644,1920.1,1919.9,9.97848617]
[1688315575724,7.92910644,1920.1,1919.9,10.41715]
[1688315576656,6.83866533,1920.1,1919.9,10.41715]
[1688315577961,6.83866533,1920.1,1919.9,5.20855]
[1688315582165,6.83866533,1920.1,1919.9,10.41715]
[1688315587863,6.83866533,1920.1,1919.9,5.20855]
[1688315588474,0.68386653,1920.0,1919.8,5.2086]
[1688315588649,11.91684446,1920.0,1919.7,10.41794]
[1688315589160,6.70827446,1920.0,1919.7,10.41794]
[1688315589971,3.50356977,1919.9,1919.3,6.16294042]
[1688315590167,11.23422793,1919.8,1919.4,2.93617133]
[1688315590389,11.23422793,1919.8,1919.5,5.20955]
[1688315590873,11.23422793,1919.8,1919.5,10.41924]
[1688315591072,1.12342279,1919.7,1919.5,10.41924]
[1688315591434,1.12342279,1919.7,1919.5,13.02408]
[1688315591636,5.20898,1919.8,1919.5,13.02408]
[1688315598287,8.56701929,1919.9,1919.5,5.20955]
[1688315598288,14.59180722,1919.9,1919.5,5.20955]
[1688315598439,14.59180722,1919.9,1919.5,10.41924]
[1688315601546,14.59180722,1919.9,1919.5,13.02408]
[1688315601943,2.3250661,1920.0,1919.5,13.02408]
[1688315602144,2.3250661,1920.0,1919.5,13.97508]
[1688315602145,0.81604793,1920.0,1919.5,13.97508]
[1688315602475,6.02442793,1920.0,1919.5,15.62588]
[1688315603387,6.02442793,1920.0,1919.5,14.67488]
[1688315603574,7.25838925,1920.0,1919.5,14.67488]
[1688315604485,7.25838925,1920.0,1919.5,12.07004]
[1688315604677,15.07092925,1920.0,1919.5,12.07004]
[1688315612398,0.81604793,1919.9,1919.5,1.6508]
[1688315612605,10.41786,1919.8,1919.4,2.0308]
[1688315612771,1.041786,1919.7,1919.4,2.0308]
[1688315612966,6.250986,1919.7,1919.4,2.0308]
[1688315615213,6.250986,1919.7,1919.4,7.24066]
[1688315615621,6.250986,1919.7,1919.4,12.45062]
[1688315615904,6.250986,1919.7,1919.4,7.24066]
[1688315618779,0.6250986,1919.6,1919.3,0.40901515]
[1688315618979,0.6250986,1919.6,1919.3,5.61907515]
[1688315618980,5.8345086,1919.6,1919.3,5.61907515]
[1688315619195,5.20941,1919.6,1919.3,5.61907515]
[1688315619577,5.20941,1919.6,1919.3,0.40901515]
[1688315619991,10.43511414,1919.7,1919.3,5.61923515]
[1688315620404,5.22578414,1919.7,1919.3,5.61923515]
[1688315620701,0.52257841,1919.6,1919.3,10.82946515]
[1688315621101,5.22578414,1919.7,1919.3,13.43457515]
[1688315621601,5.22578414,1919.7,1919.3,5.61923515]
[1688315621811,13.12261598,1919.7,1919.3,0.40901515]
[1688315622106,7.91330598,1919.7,1919.3,0.40901515]
[1688315622603,2.68752184,1919.6,1919.3,0.40901515]
[1688315622911,0.26875218,1919.5,1919.3,0.40901515]
[1688315623106,2.68752184,1919.6,1919.3,0.40901515]
[1688315623407,2.68752184,1919.6,1919.3,5.61917515]
[1688315623983,2.68752184,1919.6,1919.3,0.40901515]
[1688315625806,7.89694184,1919.6,1919.3,0.40901515]
[1688315626107,2.68752184,1919.6,1919.3,0.40901515]
[1688315626304,0.26875218,1919.5,1919.3,0.40901515]
[1688315627198,5.47845218,1919.5,1919.3,0.40901515]
[1688315627404,0.26875218,1919.5,1919.3,0.40901515]
[1688315627810,5.47845218,1919.5,1919.3,0.40901515]
[1688315628810,1.6073,1919.7,1919.3,5.61924515]
[1688315629019,3.74068904,1919.9,1919.4,0.949]
[1688315629228,13.24432088,1919.9,1919.5,10.4191]
[1688315629520,5.20894,1919.8,1919.5,10.4191]
[1688315630930,11.18338573,1919.8,1919.5,10.4191]
[1688315631294,11.99943366,1919.8,1919.5,10.4191]
[1688315632201,2.33164701,1919.9,1919.5,13.02394]
[1688315632406,0.81604793,1919.9,1919.5,13.97494]
[1688315632961,0.81604793,1919.9,1919.6,0.949]
[1688315633135,6.02470793,1919.9,1919.7,10.41828]
[1688315636714,0.81604793,1919.9,1919.7,13.97385]
[1688315637037,1.09044111,1920.0,1919.7,13.97385]
[1688315637038,0.83257207,1920.1,1919.8,0.945]
[1688315637209,6.04066207,1920.1,1919.9,10.4172]
[1688315639647,5.22461414,1920.1,1919.9,10.4172]
[1688315641546,0.01652414,1920.1,1919.9,10.4172]
[1688315642619,5.22468414,1920.1,1919.9,5.2086]
[1688315648221,5.22468414,1920.1,1919.9,10.4172]
[1688315648957,0.01652414,1920.1,1919.9,10.4172]
[1688315649129,5.22460414,1920.1,1919.9,5.2086]
[1688315650379,5.22460414,1920.1,1919.8,10.41748]
[1688315652606,31.65044111,1920.5,1920.0,0.947]
[1688315652761,0.41007051,1920.5,1920.1,15.62381]
[1688315652969,31.92503739,1920.7,1920.2,0.01090179]
[1688315652970,31.65044111,1920.7,1920.2,0.01090179]
[1688315653292,0.12966777,1920.8,1920.4,0.01940108]
[1688315653493,6.29638111,1920.9,1920.6,10.4133]
[1688315653700,6.29638111,1920.9,1920.6,10.4109141]
[1688315653842,11.50232111,1920.9,1920.7,0.01940108]
[1688315654043,1.15023211,1920.8,1920.7,5.22566108]
[1688315654265,6.35639211,1920.8,1920.7,5.22566108]
[1688315654462,1.15023211,1920.8,1920.7,10.43209108]
[1688315655130,0.4115236,1920.9,1920.7,13.11961292]
[1688315655397,1.09044111,1921.3,1920.9,0.01940108]
[1688315655558,5.20455,1921.4,1920.9,13.03357108]
[1688315655752,4.096892,1921.4,1920.9,13.03357108]
[1688315656061,1.09044111,1921.6,1921.2,0.951]
[1688315656368,0.42704261,1921.6,1921.3,13.03130108]
[1688315656686,11.77215739,1921.8,1921.3,13.03130108]
[1688315656687,10.40712,1921.8,1921.3,13.03130108]
[1688315656883,8.02116162,1921.8,1921.3,13.03130108]
[1688315658378,7.89107184,1921.8,1921.3,13.03130108]
[1688315658604,0.78910718,1921.7,1921.3,13.03130108]
[1688315659241,0.78910718,1921.7,1921.3,13.0119]
[1688315659444,0.78910718,1921.7,1921.4,0.01207088]
[1688315659666,0.78910718,1921.7,1921.5,10.40852]
[1688315660254,2.68752184,1921.6,1921.4,0.01207088]
[1688315660458,0.26875218,1921.5,1921.4,0.01207088]
[1688315661325,2.95627402,1921.5,1921.4,0.01207088]
[1688315661572,2.95627402,1921.5,1921.3,10.40928]
[1688315661797,2.95627402,1921.5,1921.4,0.01835034]
[1688315661995,0.26875218,1921.5,1921.4,0.01835034]
[1688315662290,5.99297718,1921.7,1921.4,5.22288034]
[1688315662455,2.68752184,1921.6,1921.4,5.22288034]
[1688315662667,2.68752184,1921.6,1921.4,0.01835034]
[1688315664690,0.943,1921.5,1921.4,0.01835034]
[1688315664884,14.03904184,1921.5,1921.0,5.2055]
[1688315665088,2.34590418,1921.4,1921.1,0.01975768]
[1688315665287,2.34590418,1921.4,1921.1,5.22496768]
[1688315665591,5.03342602,1921.4,1921.1,0.01975768]
[1688315665898,5.03342602,1921.4,1921.0,0.01975768]
[1688315666398,5.03342602,1921.4,1921.0,5.22531768]
[1688315666563,0.5033426,1921.3,1921.0,0.01975768]
[1688315666988,0.5033426,1921.3,1921.0,5.22535768]
[1688315668167,0.5033426,1921.3,1921.0,0.01975768]
[1688315668368,0.5033426,1921.3,1921.0,5.22536768]
[1688315669574,0.5033426,1921.3,1921.0,0.01975768]
[1688315670997,0.5033426,1921.3,1921.0,5.22531768]
[1688315671965,3.19086444,1921.3,1921.0,0.01975768]
[1688315672181,0.31908644,1921.2,1921.0,0.01975768]
[1688315673596,0.31908644,1921.2,1921.0,5.20561]
[1688315673801,3.19086444,1921.3,1921.1,0.01975768]
[1688315674301,3.19086444,1921.3,1921.1,5.20535]
[1688315674507,3.19086444,1921.3,1921.1,10.4107]
[1688315676082,1.5241,1921.5,1921.1,10.4107]
[1688315676271,2.68752184,1921.5,1921.1,13.01337]
[1688315676472,2.74940718,1921.7,1921.1,13.01337]
[1688315676680,4.64782184,1921.7,1921.2,0.012583]
[1688315676900,5.20403,1921.6,1921.3,10.40936]
[1688315677966,10.40806,1921.6,1921.3,5.20467]
[1688315678867,10.40806,1921.6,1921.2,10.40986]
[1688315679293,10.40806,1921.6,1921.3,0.01104167]
[1688315679504,1.040806,1921.5,1921.2,10.40986]
[1688315679795,6.245166,1921.5,1921.3,0.00994858]
[1688315680908,16.73917784,1921.5,1921.3,0.00994858]
[1688315681210,16.73917784,1921.5,1921.2,0.01637324]
[1688315681403,16.73917784,1921.5,1921.1,0.01637324]
[1688315681571,0.42590486,1921.7,1921.2,13.01267]
[1688315681772,5.62982486,1921.7,1921.3,0.01637324]
[1688315682118,10.40787,1921.7,1921.4,5.20448]
[1688315682675,10.40787,1921.7,1921.4,10.40901]
[1688315683002,11.708829,1921.7,1921.4,10.40901]
[1688315683218,6.504879,1921.7,1921.4,13.01127]
[1688315683370,5.20392,1921.7,1921.4,13.01127]
[1688315686285,5.20359,1921.8,1921.4,13.01127]
[1688315686485,0.55978538,1921.9,1921.5,0.947]
[1688315686796,5.20319,1921.9,1921.6,13.00987]
[1688315687605,5.20292,1922.0,1921.6,13.00987]
[1688315687812,10.81575177,1922.0,1921.6,13.00987]
[1688315688089,10.9430954,1922.0,1921.6,10.40788]